[Event "Chestnut 2nd Category Final 2025"]
[Site "Kyiv"]
[Date "2025.04.06"]
[Round "1.1"]
[White "Udod, Oleksandra"]
[Black "Kravchuk, Sviatoslav"]
[Result "1/2-1/2"]
[Annotator "NA"]
[ECO "A36"]
[WhiteElo "1646"]
[BlackElo "1441"]
[PlyCount "84"]
[EventDate "2025.04.03"]
[EventCountry "UKR"]
[SourceTitle "playchess.com"]
[Source "ChessBase"]
[SourceQuality "1"]
[TimeControl "600+5"]

1. c4 {[%emt 0:00:01]} c5 {[%emt 0:00:02]} 2. Nc3 {[%emt 0:00:02]} Nc6 {[%emt 0:00:02]} 3. g3 {[%emt 0:00:02]} d6 {[%emt 0:00:01]} 4. Bg2 {[%emt 0:00:05]} g6 {[%emt 0:00:04]} 5. e3 {[%emt 0:00:07]} Nf6 {[%emt 0:00:02]} 6. Nge2 {[%emt 0:00:03]} Bg7 {[%emt 0:00:04]} 7. d4 {[%emt 0:00:01]} Bf5 {[%emt 0:00:36]} 8. O-O {[%emt 0:01:12]} O-O {[%emt 0:00:05]} 9. b3 {[%emt 0:02:00]} Nb4 {[%emt 0:00:50]} 10. Ba3 {[%emt 0:01:24]} Nc2 {[%emt 0:00:27]} 11. e4 {[%emt 0:00:14]} Nxe4 {[%emt 0:00:30]} 12. Nxe4 {[%emt 0:00:15]} Bxe4 {[%emt 0:00:04]} 13. Bxe4 {[%emt 0:00:04]} Nxa3 {[%emt 0:00:31]} 14. Bxb7 {[%emt 0:00:17]} Rb8 {[%emt 0:00:13]} 15. Bg2 {[%emt 0:00:10]} cxd4 {[%emt 0:00:13]} 16. Nxd4 {[%emt 0:00:09]} Bxd4 {[%emt 0:00:02]} 17. Qxd4 {[%emt 0:00:35]} Nc2 {[%emt 0:00:03]} 18. Qxa7 {[%emt 0:00:10]} Nxa1 {[%emt 0:00:03]} 19. Rxa1 {[%emt 0:00:02]} e5 {[%emt 0:00:29]} 20. a4 {[%emt 0:01:05]} Qf6 {[%emt 0:00:33]} 21. Rb1 {[%emt 0:00:37]} Qf5 {[%emt 0:00:22]} 22. Rb2 {[%emt 0:00:28]} Qg5 {[%emt 0:00:55]} 23. Rb1 {[%emt 0:00:15]} Qd2 {[%emt 0:00:27]} 24. Qe3 {[%emt 0:01:35]} Qxe3 {[%emt 0:00:21]} 25. fxe3 {[%emt 0:00:01]} Rfe8 {[%emt 0:00:10]} 26. Bd5 {[%emt 0:00:10]} Re7 {[%emt 0:00:47]} 27. b4 {[%emt 0:00:04]} Ra7 {[%emt 0:00:10]} 28. a5 {[%emt 0:00:16]} Rxa5 {[%emt 0:00:27]} 29. b5 {[%emt 0:00:06]} Rb6 {[%emt 0:00:57]} 30. Rf1 {[%emt 0:00:03]} Ra7 {[%emt 0:00:02]} 31. e4 {[%emt 0:00:32]} Kg7 {[%emt 0:00:48]} 32. Bc6 {[%emt 0:00:05]} Rb8 {[%emt 0:00:35]} 33. Rd1 {[%emt 0:00:08]} Rd8 {[%emt 0:00:55]} 34. c5 {[%emt 0:00:01]} Ra5 {[%emt 0:00:42]} 35. Rxd6 {[%emt 0:00:23]} Rxd6 {[%emt 0:00:03]} 36. cxd6 {[%emt 0:00:01]} Kf6 {[%emt 0:00:08]} 37. d7 {[%emt 0:00:05]} Ke7 {[%emt 0:00:05]} 38. b6 {[%emt 0:00:09]} Ra1+ {[%emt 0:00:16]} 39. Kg2 {[%emt 0:00:03]} Rb1 {[%emt 0:00:02]} 40. b7 {[%emt 0:00:04]} Kd8 {[%emt 0:00:03]} 41. Kh3 {[%emt 0:00:03]} Kc7 {[%emt 0:00:10]} 42. Bd5 {[%emt 0:00:07]} f6 {[%emt 0:00:08]} 1/2-1/2

[Event "Chestnut 2nd Category Final 2025"]
[Site "Kyiv"]
[Date "2025.04.06"]
[Round "1.2"]
[White "Chornyi, Viktor"]
[Black "Diachuk, Ihor"]
[Result "1-0"]
[Annotator "NA"]
[ECO "C70"]
[WhiteElo "1515"]
[BlackElo "1550"]
[PlyCount "139"]
[EventDate "2025.04.03"]
[EventCountry "UKR"]
[SourceTitle "playchess.com"]
[Source "ChessBase"]
[SourceQuality "1"]
[TimeControl "600+5"]

1. e4 {[%emt 0:00:02]} e5 {[%emt 0:00:01]} 2. Nf3 {[%emt 0:00:01]} Nc6 {[%emt 0:00:02]} 3. Bb5 {[%emt 0:00:02]} a6 {[%emt 0:00:04]} 4. Ba4 {[%emt 0:00:01]} b5 {[%emt 0:00:15]} 5. Bb3 {[%emt 0:00:02]} Be7 {[%emt 0:00:05]} 6. O-O {[%emt 0:00:08]} Nf6 {[%emt 0:00:03]} 7. Nc3 {[%emt 0:00:03]} O-O {[%emt 0:00:03]} 8. Re1 {[%emt 0:00:05]} d6 {[%emt 0:00:05]} 9. h3 {[%emt 0:00:01]} Rb8 {[%emt 0:00:03]} 10. a3 {[%emt 0:00:03]} Bb7 {[%emt 0:00:10]} 11. d3 {[%emt 0:00:04]} Nd7 {[%emt 0:00:09]} 12. Be3 {[%emt 0:00:12]} h6 {[%emt 0:00:04]} 13. Qd2 {[%emt 0:00:07]} Bf6 {[%emt 0:00:12]} 14. Nd5 {[%emt 0:00:27]} Kh7 {[%emt 0:00:44]} 15. Nh2 {[%emt 0:00:37]} Ne7 {[%emt 0:00:28]} 16. Nxe7 {[%emt 0:00:47]} Bxe7 {[%emt 0:00:04]} 17. Ng4 {[%emt 0:00:02]} Nf6 {[%emt 0:00:04]} 18. Nxf6+ {[%emt 0:00:46]} Bxf6 {[%emt 0:00:02]} 19. Qe2 {[%emt 0:00:38]} Bg5 {[%emt 0:00:05]} 20. Ba7 {[%emt 0:00:29]} Ra8 {[%emt 0:00:04]} 21. Be3 {[%emt 0:00:03]} Bxe3 {[%emt 0:00:02]} 22. Qxe3 {[%emt 0:00:02]} Qf6 {[%emt 0:00:28]} 23. Qg3 {[%emt 0:00:18]} Qg6 {[%emt 0:00:30]} 24. Re3 {[%emt 0:00:10]} Qxg3 {[%emt 0:00:04]} 25. Rxg3 {[%emt 0:00:03]} f5 {[%emt 0:00:08]} 26. Re3 {[%emt 0:00:16]} f4 {[%emt 0:00:04]} 27. Re2 {[%emt 0:00:07]} Rf6 {[%emt 0:00:13]} 28. f3 {[%emt 0:00:12]} a5 {[%emt 0:00:04]} 29. Ba2 {[%emt 0:00:20]} Rd8 {[%emt 0:00:12]} 30. b4 {[%emt 0:00:16]} a4 {[%emt 0:00:04]} 31. c4 {[%emt 0:00:12]} c6 {[%emt 0:00:24]} 32. Rc1 {[%emt 0:00:07]} Rc8 {[%emt 0:00:12]} 33. cxb5 {[%emt 0:00:07]} cxb5 {[%emt 0:00:03]} 34. Rxc8 {[%emt 0:00:02]} Bxc8 {[%emt 0:00:02]} 35. Rc2 {[%emt 0:00:02]} Rf8 {[%emt 0:00:09]} 36. Rc6 {[%emt 0:00:05]} Rd8 {[%emt 0:00:20]} 37. Kf2 {[%emt 0:00:34]} Kg6 {[%emt 0:00:14]} 38. Rb6 {[%emt 0:00:13]} Kf6 {[%emt 0:00:02]} 39. Rxb5 {[%emt 0:00:06]} Ba6 {[%emt 0:00:07]} 40. Rd5 {[%emt 0:00:20]} Ke7 {[%emt 0:00:13]} 41. Ke2 {[%emt 0:00:19]} Rc8 {[%emt 0:00:19]} 42. Kd2 {[%emt 0:00:03]} Bb7 {[%emt 0:00:23]} 43. Rb5 {[%emt 0:00:16]} Bc6 {[%emt 0:00:01]} 44. Rb6 {[%emt 0:00:01]} Kd7 {[%emt 0:00:09]} 45. Ra6 {[%emt 0:00:07]} Rc7 {[%emt 0:00:20]} 46. Bc4 {[%emt 0:00:51]} Rb7 {[%emt 0:00:04]} 47. Ra5 {[%emt 0:00:09]} Kc7 {[%emt 0:00:24]} 48. b5 {[%emt 0:00:35]} Bd7 {[%emt 0:00:03]} 49. Rxa4 {[%emt 0:00:04]} Bxb5 {[%emt 0:00:05]} 50. Bxb5 {[%emt 0:00:07]} Rxb5 {[%emt 0:00:01]} 51. Ra7+ {[%emt 0:00:03]} Rb7 {[%emt 0:00:08]} 52. Rxb7+ {[%emt 0:00:01]} Kxb7 {[%emt 0:00:02]} 53. Kc2 {[%emt 0:00:01]} Kb6 {[%emt 0:00:01]} 54. Kb3 {[%emt 0:00:01]} Kb5 {[%emt 0:00:01]} 55. a4+ {[%emt 0:00:02]} Ka5 {[%emt 0:00:01]} 56. Kc4 {[%emt 0:00:06]} Kxa4 {[%emt 0:00:02]} 57. Kd5 {[%emt 0:00:01]} Kb4 {[%emt 0:00:01]} 58. Kxd6 {[%emt 0:00:02]} Kc3 {[%emt 0:00:02]} 59. Kxe5 {[%emt 0:00:02]} Kxd3 {[%emt 0:00:02]} 60. Kxf4 {[%emt 0:00:01]} Kd4 {[%emt 0:00:02]} 61. Kf5 {[%emt 0:00:02]} Ke3 {[%emt 0:00:03]} 62. e5 {[%emt 0:00:01]} Kf2 {[%emt 0:00:01]} 63. e6 {[%emt 0:00:00]} Kxg2 {[%emt 0:00:02]} 64. e7 {[%emt 0:00:02]} Kxf3 {[%emt 0:00:03]} 65. e8=Q {[%emt 0:00:02]} g5 {[%emt 0:00:01]} 66. Qa4 {[%emt 0:00:05]} Kg3 {[%emt 0:00:02]} 67. Qg4+ {[%emt 0:00:02]} Kh2 {[%emt 0:00:02]} 68. Ke4 {[%emt 0:00:04]} Kh1 {[%emt 0:00:04]} 69. Kf3 {[%emt 0:00:03]} h5 {[%emt 0:00:01]} 70. Qg2# {[%emt 0:00:01]} 1-0

[Event "Chestnut 2nd Category Final 2025"]
[Site "Kyiv"]
[Date "2025.04.06"]
[Round "1.5"]
[White "Atamanchuk, Dmytro"]
[Black "Ruzhanskyi, Kiril"]
[Result "1-0"]
[Annotator "NA"]
[ECO "A40"]
[WhiteElo "1493"]
[BlackElo "1534"]
[PlyCount "59"]
[EventDate "2025.04.03"]
[EventCountry "UKR"]
[SourceTitle "playchess.com"]
[Source "ChessBase"]
[SourceQuality "1"]
[TimeControl "600+5"]

1. d4 {[%emt 0:00:02]} g6 {[%emt 0:00:01]} 2. c4 {[%emt 0:00:02]} c6 {[%emt 0:00:01]} 3. Nc3 {[%emt 0:00:01]} d5 {[%emt 0:00:01]} 4. cxd5 {[%emt 0:00:05]} cxd5 {[%emt 0:00:02]} 5. Bf4 {[%emt 0:00:02]} Bg7 {[%emt 0:00:15]} 6. e3 {[%emt 0:00:06]} a6 {[%emt 0:00:19]} 7. Nf3 {[%emt 0:00:38]} Bg4 {[%emt 0:00:02]} 8. Be2 {[%emt 0:00:02]} Nf6 {[%emt 0:00:02]} 9. h3 {[%emt 0:00:05]} Bxf3 {[%emt 0:00:02]} 10. Bxf3 {[%emt 0:00:02]} e6 {[%emt 0:00:01]} 11. O-O {[%emt 0:00:49]} O-O {[%emt 0:00:02]} 12. Qb3 {[%emt 0:00:02]} Qd7 {[%emt 0:00:24]} 13. Na4 {[%emt 0:00:17]} b5 {[%emt 0:00:39]} 14. Nb6 {[%emt 0:00:46]} Qb7 {[%emt 0:00:50]} 15. Nxa8 {[%emt 0:00:09]} Qxa8 {[%emt 0:00:03]} 16. Rac1 {[%emt 0:00:13]} Nc6 {[%emt 0:00:05]} 17. Qd3 {[%emt 0:01:20]} Rd8 {[%emt 0:01:12]} 18. Rc3 {[%emt 0:01:10]} Nb4 {[%emt 0:01:16]} 19. Qb1 {[%emt 0:00:11]} a5 {[%emt 0:00:32]} 20. Rfc1 {[%emt 0:00:42]} Ne8 {[%emt 0:00:48]} 21. a3 {[%emt 0:00:14]} Na6 {[%emt 0:00:02]} 22. Rc6 {[%emt 0:00:19]} Qb7 {[%emt 0:00:34]} 23. Qc2 {[%emt 0:00:29]} b4 {[%emt 0:00:55]} 24. Rc8 {[%emt 0:01:17]} Bf6 {[%emt 0:00:02]} 25. Rxd8 {[%emt 0:00:11]} Bxd8 {[%emt 0:00:02]} 26. Qc8 {[%emt 0:00:07]} Qe7 {[%emt 0:01:02]} 27. Qxa6 {[%emt 0:00:56]} bxa3 {[%emt 0:00:07]} 28. bxa3 {[%emt 0:00:19]} Ng7 {[%emt 0:01:59]} 29. Rc8 {[%emt 0:00:37]} Qf8 {[%emt 0:00:59]} 30. Bc7 {[%emt 0:00:40]} 1-0

[Event "Chestnut 2nd Category Final 2025"]
[Site "Kyiv"]
[Date "2025.04.06"]
[Round "2.1"]
[White "Kravchuk, Sviatoslav"]
[Black "Voloshyn, Maksym"]
[Result "0-1"]
[Annotator "NA"]
[ECO "C01"]
[WhiteElo "1441"]
[BlackElo "1621"]
[PlyCount "74"]
[EventDate "2025.04.03"]
[EventCountry "UKR"]
[SourceTitle "playchess.com"]
[Source "ChessBase"]
[SourceQuality "1"]
[TimeControl "600+5"]

1. e4 {[%emt 0:00:01]} e6 {[%emt 0:00:01]} 2. d4 {[%emt 0:00:02]} d5 {[%emt 0:00:01]} 3. exd5 {[%emt 0:00:02]} exd5 {[%emt 0:00:01]} 4. Nf3 {[%emt 0:00:02]} Nf6 {[%emt 0:00:01]} 5. c4 {[%emt 0:00:01]} Bb4+ {[%emt 0:00:04]} 6. Nc3 {[%emt 0:00:03]} O-O {[%emt 0:00:06]} 7. a3 {[%emt 0:00:05]} Bxc3+ {[%emt 0:00:02]} 8. bxc3 {[%emt 0:00:02]} Re8+ {[%emt 0:00:02]} 9. Be2 {[%emt 0:00:05]} Bg4 {[%emt 0:00:11]} 10. O-O {[%emt 0:00:04]} h6 {[%emt 0:00:01]} 11. Be3 {[%emt 0:00:16]} dxc4 {[%emt 0:00:12]} 12. Bxc4 {[%emt 0:00:04]} Nd5 {[%emt 0:00:02]} 13. Re1 {[%emt 0:01:13]} Nxe3 {[%emt 0:00:18]} 14. Rxe3 {[%emt 0:00:08]} Rxe3 {[%emt 0:00:03]} 15. fxe3 {[%emt 0:00:02]} Qe7 {[%emt 0:00:02]} 16. Qe2 {[%emt 0:00:12]} c6 {[%emt 0:00:03]} 17. Qf2 {[%emt 0:00:10]} Nd7 {[%emt 0:00:02]} 18. Re1 {[%emt 0:00:42]} Nb6 {[%emt 0:00:07]} 19. Bd3 {[%emt 0:00:40]} Qxa3 {[%emt 0:00:18]} 20. Ne5 {[%emt 0:00:14]} Be6 {[%emt 0:00:08]} 21. Qd2 {[%emt 0:01:14]} Nd7 {[%emt 0:00:27]} 22. Nf3 {[%emt 0:00:20]} Nf6 {[%emt 0:00:10]} 23. Ne5 {[%emt 0:00:09]} Qd6 {[%emt 0:00:36]} 24. Bc2 {[%emt 0:00:25]} c5 {[%emt 0:00:25]} 25. Qd3 {[%emt 0:00:42]} cxd4 {[%emt 0:00:30]} 26. exd4 {[%emt 0:00:04]} Bd5 {[%emt 0:00:37]} 27. Re3 {[%emt 0:01:00]} Rd8 {[%emt 0:00:27]} 28. Re1 {[%emt 0:01:09]} a6 {[%emt 0:00:18]} 29. Rf1 {[%emt 0:00:11]} b5 {[%emt 0:00:31]} 30. Re1 {[%emt 0:00:55]} Qc7 {[%emt 0:01:24]} 31. Ng4 {[%emt 0:00:48]} Ne4 {[%emt 0:00:47]} 32. Rxe4 {[%emt 0:00:25]} Bxe4 {[%emt 0:00:02]} 33. Qxe4 {[%emt 0:00:01]} Qxc3 {[%emt 0:00:16]} 34. Ne5 {[%emt 0:00:31]} Qxd4+ {[%emt 0:00:06]} 35. Qxd4 {[%emt 0:00:15]} Rxd4 {[%emt 0:00:02]} 36. Nc6 {[%emt 0:00:01]} Rc4 {[%emt 0:00:12]} 37. Ne7+ {[%emt 0:00:08]} Kf8 {[%emt 0:00:02]} 0-1

[Event "Chestnut 2nd Category Final 2025"]
[Site "Kyiv"]
[Date "2025.04.06"]
[Round "2.2"]
[White "Ruzhanskyi, Kiril"]
[Black "Kulak, Volodymyr"]
[Result "0-1"]
[Annotator "NA"]
[ECO "D00"]
[WhiteElo "1534"]
[BlackElo "1607"]
[PlyCount "202"]
[EventDate "2025.04.03"]
[EventCountry "UKR"]
[SourceTitle "playchess.com"]
[Source "ChessBase"]
[SourceQuality "1"]
[TimeControl "600+5"]

1. d4 {[%emt 0:00:02]} d5 {[%emt 0:00:01]} 2. g3 {[%emt 0:00:01]} Nf6 {[%emt 0:00:04]} 3. Bg2 {[%emt 0:00:01]} Bf5 {[%emt 0:00:10]} 4. Bg5 {[%emt 0:00:11]} Nbd7 {[%emt 0:00:23]} 5. Nc3 {[%emt 0:00:02]} c6 {[%emt 0:00:09]} 6. e3 {[%emt 0:00:29]} h6 {[%emt 0:00:07]} 7. Bxf6 {[%emt 0:00:03]} Nxf6 {[%emt 0:00:06]} 8. Nf3 {[%emt 0:00:06]} e6 {[%emt 0:00:21]} 9. O-O {[%emt 0:00:08]} Bd6 {[%emt 0:00:30]} 10. Re1 {[%emt 0:00:21]} O-O {[%emt 0:00:09]} 11. Nd2 {[%emt 0:00:06]} Bc7 {[%emt 0:00:20]} 12. Nb3 {[%emt 0:00:30]} b6 {[%emt 0:00:38]} 13. Nb1 {[%emt 0:00:29]} Be4 {[%emt 0:00:41]} 14. f3 {[%emt 0:00:27]} Bg6 {[%emt 0:00:15]} 15. N1d2 {[%emt 0:00:03]} Qd7 {[%emt 0:00:31]} 16. c3 {[%emt 0:00:06]} Rac8 {[%emt 0:01:01]} 17. e4 {[%emt 0:00:04]} Rfe8 {[%emt 0:01:00]} 18. e5 {[%emt 0:00:19]} Nh7 {[%emt 0:00:12]} 19. f4 {[%emt 0:00:13]} Bd8 {[%emt 0:00:45]} 20. c4 {[%emt 0:00:26]} Be7 {[%emt 0:00:41]} 21. Rc1 {[%emt 0:00:18]} Rc7 {[%emt 0:00:25]} 22. cxd5 {[%emt 0:00:27]} cxd5 {[%emt 0:00:14]} 23. Rxc7 {[%emt 0:00:20]} Qxc7 {[%emt 0:00:05]} 24. Qe2 {[%emt 0:00:02]} Qb7 {[%emt 0:00:46]} 25. Rc1 {[%emt 0:00:31]} Rc8 {[%emt 0:00:06]} 26. Rxc8+ {[%emt 0:01:17]} Qxc8 {[%emt 0:00:04]} 27. Qb5 {[%emt 0:00:10]} Nf8 {[%emt 0:00:24]} 28. Nf1 {[%emt 0:01:10]} Qc2 {[%emt 0:00:54]} 29. Qe8 {[%emt 0:00:21]} Bb4 {[%emt 0:00:21]} 30. Qa4 {[%emt 0:00:36]} a5 {[%emt 0:00:19]} 31. Qb5 {[%emt 0:00:52]} Qxb2 {[%emt 0:00:10]} 32. Qxb6 {[%emt 0:00:03]} Qxa2 {[%emt 0:00:04]} 33. Nc5 {[%emt 0:00:22]} Qb2 {[%emt 0:00:28]} 34. Na4 {[%emt 0:00:31]} Qb3 {[%emt 0:00:07]} 35. Nc5 {[%emt 0:00:07]} Qd1 {[%emt 0:00:12]} 36. Nb7 {[%emt 0:00:37]} Qa1 {[%emt 0:00:11]} 37. Kf2 {[%emt 0:00:34]} Bc3 {[%emt 0:00:07]} 38. Ne3 {[%emt 0:00:27]} Bxd4 {[%emt 0:00:04]} 39. Qxa5 {[%emt 0:00:07]} Bxe3+ {[%emt 0:00:07]} 40. Kxe3 {[%emt 0:00:02]} Qxa5 {[%emt 0:00:04]} 41. Nxa5 {[%emt 0:00:02]} Nd7 {[%emt 0:00:03]} 42. Kd4 {[%emt 0:00:04]} Kf8 {[%emt 0:00:04]} 43. Nb7 {[%emt 0:00:02]} Ke7 {[%emt 0:00:03]} 44. Nd6 {[%emt 0:00:02]} f6 {[%emt 0:00:09]} 45. h3 {[%emt 0:00:16]} fxe5+ {[%emt 0:00:06]} 46. fxe5 {[%emt 0:00:01]} Nb6 {[%emt 0:00:06]} 47. Kc5 {[%emt 0:00:08]} Na4+ {[%emt 0:00:04]} 48. Kd4 {[%emt 0:00:07]} Nb2 {[%emt 0:00:06]} 49. h4 {[%emt 0:00:02]} Nd3 {[%emt 0:00:05]} 50. Bh3 {[%emt 0:00:03]} Nf2 {[%emt 0:00:04]} 51. Nc8+ {[%emt 0:00:09]} Kd7 {[%emt 0:00:04]} 52. Nb6+ {[%emt 0:00:01]} Kc6 {[%emt 0:00:04]} 53. Bxe6 {[%emt 0:00:05]} Kxb6 {[%emt 0:00:02]} 54. Kxd5 {[%emt 0:00:02]} Kc7 {[%emt 0:00:03]} 55. g4 {[%emt 0:00:04]} Be4+ {[%emt 0:00:08]} 56. Kd4 {[%emt 0:00:01]} Bc6 {[%emt 0:00:05]} 57. g5 {[%emt 0:00:10]} hxg5 {[%emt 0:00:09]} 58. hxg5 {[%emt 0:00:02]} Kd8 {[%emt 0:00:04]} 59. Kc5 {[%emt 0:00:03]} Bd7 {[%emt 0:00:05]} 60. Bd5 {[%emt 0:00:08]} Ke7 {[%emt 0:00:04]} 61. Kd4 {[%emt 0:00:05]} Nh3 {[%emt 0:00:04]} 62. g6 {[%emt 0:00:03]} Bf5 {[%emt 0:00:06]} 63. Bf7 {[%emt 0:00:01]} Nf4 {[%emt 0:00:07]} 64. Ke3 {[%emt 0:00:02]} Nxg6 {[%emt 0:00:03]} 65. Kf3 {[%emt 0:00:09]} Nf8 {[%emt 0:00:06]} 66. Kf4 {[%emt 0:00:04]} Be6 {[%emt 0:00:02]} 67. Bh5 {[%emt 0:00:02]} Bf7 {[%emt 0:00:04]} 68. Bg4 {[%emt 0:00:04]} Ne6+ {[%emt 0:00:03]} 69. Ke3 {[%emt 0:00:03]} g5 {[%emt 0:00:08]} 70. Ke4 {[%emt 0:00:05]} Bg6+ {[%emt 0:00:05]} 71. Ke3 {[%emt 0:00:02]} Ng7 {[%emt 0:00:09]} 72. Be2 {[%emt 0:00:16]} Ke6 {[%emt 0:00:02]} 73. Bf1 {[%emt 0:00:06]} Kxe5 {[%emt 0:00:03]} 74. Bg2 {[%emt 0:00:01]} Kf5 {[%emt 0:00:04]} 75. Kf3 {[%emt 0:00:02]} Ne6 {[%emt 0:00:04]} 76. Bh3+ {[%emt 0:00:01]} Kf6 {[%emt 0:00:02]} 77. Kf2 {[%emt 0:00:02]} Bf5 {[%emt 0:00:02]} 78. Bg2 {[%emt 0:00:01]} Nf4 {[%emt 0:00:03]} 79. Bb7 {[%emt 0:00:02]} Ke5 {[%emt 0:00:06]} 80. Kg3 {[%emt 0:00:01]} Kf6 {[%emt 0:00:04]} 81. Kf3 {[%emt 0:00:03]} Ng6 {[%emt 0:00:03]} 82. Kg3 {[%emt 0:00:02]} Be6 {[%emt 0:00:12]} 83. Be4 {[%emt 0:00:02]} Bf5 {[%emt 0:00:06]} 84. Bf3 {[%emt 0:00:04]} Ke5 {[%emt 0:00:08]} 85. Be2 {[%emt 0:00:15]} Nf4 {[%emt 0:00:09]} 86. Bf3 {[%emt 0:00:01]} Nd5 {[%emt 0:00:07]} 87. Bxd5 {[%emt 0:00:11]} Kxd5 {[%emt 0:00:03]} 88. Kf2 {[%emt 0:00:02]} g4 {[%emt 0:00:02]} 89. Kg3 {[%emt 0:00:00]} Ke4 {[%emt 0:00:01]} 90. Kg2 {[%emt 0:00:01]} Kf4 {[%emt 0:00:01]} 91. Kf2 {[%emt 0:00:00]} Be4 {[%emt 0:00:01]} 92. Kg1 {[%emt 0:00:01]} Kf3 {[%emt 0:00:01]} 93. Kf1 {[%emt 0:00:01]} g3 {[%emt 0:00:02]} 94. Kg1 {[%emt 0:00:01]} g2 {[%emt 0:00:04]} 95. Kh2 {[%emt 0:00:03]} Kf2 {[%emt 0:00:02]} 96. Kh3 {[%emt 0:00:00]} g1=Q {[%emt 0:00:05]} 97. Kh4 {[%emt 0:00:01]} Kf3 {[%emt 0:00:02]} 98. Kh5 {[%emt 0:00:01]} Kf4 {[%emt 0:00:01]} 99. Kh6 {[%emt 0:00:01]} Kf5 {[%emt 0:00:02]} 100. Kh7 {[%emt 0:00:01]} Kf6+ {[%emt 0:00:01]} 101. Kh6 {[%emt 0:00:01]} Qh2# {[%emt 0:00:03]} 0-1

[Event "Chestnut 2nd Category Final 2025"]
[Site "Kyiv"]
[Date "2025.04.06"]
[Round "2.5"]
[White "Diachuk, Ihor"]
[Black "Prykhodko, Artem"]
[Result "0-1"]
[Annotator "NA"]
[ECO "C57"]
[WhiteElo "1550"]
[BlackElo "1678"]
[PlyCount "26"]
[EventDate "2025.04.03"]
[EventCountry "UKR"]
[SourceTitle "playchess.com"]
[Source "ChessBase"]
[SourceQuality "1"]
[TimeControl "600+5"]

1. e4 {[%emt 0:00:02]} e5 {[%emt 0:00:02]} 2. Nf3 {[%emt 0:00:02]} Nc6 {[%emt 0:00:02]} 3. Bc4 {[%emt 0:00:02]} Nf6 {[%emt 0:00:02]} 4. Ng5 {[%emt 0:00:02]} d5 {[%emt 0:00:01]} 5. exd5 {[%emt 0:00:01]} Nd4 {[%emt 0:00:02]} 6. d6 {[%emt 0:00:38]} Qxd6 {[%emt 0:00:05]} 7. Nxf7 {[%emt 0:00:03]} Qc6 {[%emt 0:00:01]} 8. Nxh8 {[%emt 0:00:19]} Qxg2 {[%emt 0:00:05]} 9. Bf1 {[%emt 0:01:27]} Qe4+ {[%emt 0:00:02]} 10. Be2 {[%emt 0:00:07]} Qxh1+ {[%emt 0:00:19]} 11. Bf1 {[%emt 0:00:03]} Qe4+ {[%emt 0:00:02]} 12. Be2 {[%emt 0:00:05]} Nxc2+ {[%emt 0:00:04]} 13. Kf1 Qh1# 0-1

[Event "Chestnut 2nd Category Final 2025"]
[Site "Kyiv"]
[Date "2025.04.06"]
[Round "3.1"]
[White "Chornyi, Viktor"]
[Black "Kravchuk, Sviatoslav"]
[Result "1-0"]
[Annotator "NA"]
[ECO "B10"]
[WhiteElo "1515"]
[BlackElo "1441"]
[PlyCount "65"]
[EventDate "2025.04.03"]
[EventCountry "UKR"]
[SourceTitle "playchess.com"]
[Source "ChessBase"]
[SourceQuality "1"]
[TimeControl "600+5"]

1. e4 {[%emt 0:00:00]} c6 {[%emt 0:00:01]} 2. Nf3 {[%emt 0:00:02]} d5 {[%emt 0:00:02]} 3. exd5 {[%emt 0:00:01]} cxd5 {[%emt 0:00:01]} 4. d4 {[%emt 0:00:01]} Nc6 {[%emt 0:00:04]} 5. Bb5 {[%emt 0:00:01]} a6 {[%emt 0:00:03]} 6. Bxc6+ {[%emt 0:00:07]} bxc6 {[%emt 0:00:02]} 7. h3 {[%emt 0:00:02]} e6 {[%emt 0:00:03]} 8. O-O {[%emt 0:00:04]} Bd6 {[%emt 0:00:02]} 9. Re1 {[%emt 0:00:02]} Nf6 {[%emt 0:00:02]} 10. Nc3 {[%emt 0:00:03]} h6 {[%emt 0:00:02]} 11. Be3 {[%emt 0:00:06]} O-O {[%emt 0:00:03]} 12. Qd2 {[%emt 0:00:02]} a5 {[%emt 0:00:06]} 13. a3 {[%emt 0:00:06]} Ba6 {[%emt 0:00:03]} 14. Bf4 {[%emt 0:00:31]} Rb8 {[%emt 0:00:25]} 15. b3 {[%emt 0:00:06]} Qc7 {[%emt 0:00:16]} 16. Bxd6 {[%emt 0:00:06]} Qxd6 {[%emt 0:00:03]} 17. Na4 {[%emt 0:00:18]} Nd7 {[%emt 0:00:05]} 18. Qe3 {[%emt 0:00:31]} Rfe8 {[%emt 0:00:31]} 19. Ne5 {[%emt 0:00:09]} Nxe5 {[%emt 0:00:36]} 20. Qxe5 {[%emt 0:00:06]} Qxe5 {[%emt 0:00:07]} 21. Rxe5 {[%emt 0:00:14]} f6 {[%emt 0:00:37]} 22. Re3 {[%emt 0:00:08]} Bc8 {[%emt 0:00:05]} 23. Rae1 {[%emt 0:00:06]} Rb7 {[%emt 0:00:05]} 24. Nc5 {[%emt 0:00:03]} Rbe7 {[%emt 0:00:04]} 25. f4 {[%emt 0:00:17]} f5 {[%emt 0:00:03]} 26. a4 {[%emt 0:00:16]} Kh8 {[%emt 0:00:18]} 27. Nd3 {[%emt 0:00:14]} Rd8 {[%emt 0:00:27]} 28. Ne5 {[%emt 0:00:02]} Rd6 {[%emt 0:00:03]} 29. Ng6+ {[%emt 0:00:03]} Kh7 {[%emt 0:00:14]} 30. Nxe7 {[%emt 0:00:03]} Ba6 {[%emt 0:00:07]} 31. Rxe6 {[%emt 0:00:14]} Rxe6 {[%emt 0:00:06]} 32. Rxe6 {[%emt 0:00:03]} Bb7 {[%emt 0:00:04]} 33. Nxc6 {[%emt 0:00:08]} 1-0

[Event "Chestnut 2nd Category Final 2025"]
[Site "Kyiv"]
[Date "2025.04.06"]
[Round "3.2"]
[White "Prykhodko, Artem"]
[Black "Udod, Oleksandra"]
[Result "1-0"]
[Annotator "NA"]
[ECO "B35"]
[WhiteElo "1678"]
[BlackElo "1646"]
[PlyCount "51"]
[EventDate "2025.04.03"]
[EventCountry "UKR"]
[SourceTitle "playchess.com"]
[Source "ChessBase"]
[SourceQuality "1"]
[TimeControl "600+5"]

1. e4 {[%emt 0:00:02]} c5 {[%emt 0:00:01]} 2. Nc3 {[%emt 0:00:03]} Nc6 {[%emt 0:00:02]} 3. Nf3 {[%emt 0:00:02]} g6 {[%emt 0:00:03]} 4. d4 {[%emt 0:00:04]} cxd4 {[%emt 0:00:01]} 5. Nxd4 {[%emt 0:00:02]} Bg7 {[%emt 0:00:02]} 6. Be3 {[%emt 0:00:04]} Nf6 {[%emt 0:00:03]} 7. Bc4 {[%emt 0:00:16]} O-O {[%emt 0:00:11]} 8. O-O {[%emt 0:00:11]} d6 {[%emt 0:00:29]} 9. f4 {[%emt 0:00:34]} Qb6 {[%emt 0:01:29]} 10. Bb3 {[%emt 0:01:19]} Nxe4 {[%emt 0:00:27]} 11. Nxe4 {[%emt 0:01:03]} Bxd4 {[%emt 0:00:11]} 12. Bf2 {[%emt 0:00:41]} Bf5 {[%emt 0:01:02]} 13. Nc3 {[%emt 0:00:41]} Rac8 {[%emt 0:00:36]} 14. Bxd4 {[%emt 0:00:21]} Qxd4+ {[%emt 0:00:03]} 15. Qxd4 {[%emt 0:00:03]} Nxd4 {[%emt 0:00:02]} 16. Nd5 {[%emt 0:00:46]} Rfe8 {[%emt 0:00:48]} 17. c3 {[%emt 0:00:31]} Nxb3 {[%emt 0:00:11]} 18. axb3 {[%emt 0:00:05]} e6 {[%emt 0:00:24]} 19. Nf6+ {[%emt 0:00:03]} Kf8 {[%emt 0:00:03]} 20. Nxe8 {[%emt 0:00:03]} Kxe8 {[%emt 0:00:05]} 21. Rxa7 {[%emt 0:00:05]} Bd3 {[%emt 0:00:03]} 22. Rd1 {[%emt 0:00:16]} Ba6 {[%emt 0:00:02]} 23. Rxd6 {[%emt 0:00:09]} Ke7 {[%emt 0:00:02]} 24. Rdxa6 {[%emt 0:00:03]} Kf6 {[%emt 0:00:17]} 25. Rxb7 {[%emt 0:00:06]} Rd8 {[%emt 0:00:06]} 26. Raa7 {[%emt 0:00:06]} 1-0